[Event "XII Cracow ICC-A 2024"]
[Site "Krakow"]
[Date "2024.06.29"]
[Round "9.6"]
[White "Chatalbashev, Boris"]
[Black "Gorkiewicz, Mateusz"]
[Result "0-1"]
[ECO "A08"]
[WhiteElo "2483"]
[BlackElo "2223"]
[Annotator "TA"]
[PlyCount "142"]
[EventDate "2024.06.20"]
[EventType "swiss"]
[EventCountry "POL"]
[SourceTitle "playchess.com"]
[Source "ChessBase"]
[SourceQuality "1"]
[TimeControl "40/5400+30:1800+30"]

{[%evp 18,142,-38,-35,-35,-72,-79,-69,-72,-95,-75,-81,-87,-76,-70,-111,-136,-168,-155,-166,-104,-150,-77,-72,-24,-23,-18,-12,-12,-22,-12,-22,-6,-33,-13,-43,-33,-51,63,75,40,-165,0,0,52,25,64,61,54,76,77,72,168,160,79,75,123,127,131,115,108,116,160,149,137,94,131,62,344,113,109,0,387,135,222,220,215,203,202,155,179,138,154,152,133,147,123,71,88,21,58,14,340,341,389,415,361,322,2496,2671,29982,29983,29982,1208,29955,532,617,-29954,-29958,-29964,-29967,-29964,-29968,-29954,-29969,-29969,-29965,-29965,-29966,-29962,-29967,-29966,-29963,-29958,-29959,-12829,-6702]} 1. Nf3 {[%emt 0:00:03]} d5 {[%emt 0:00:10]} 2. g3 {[%emt 0:00:07]} Nf6 {[%emt 0:00:15]} 3. Bg2 {[%emt 0:00:07]} e6 {[%emt 0:00:15]} 4. O-O {[%emt 0:00:14]} Be7 {[%emt 0:00:12]} 5. d3 {[%emt 0:00:08]} O-O {[%emt 0:00:10]} 6. Nbd2 {[%emt 0:00:06]} c5 {[%emt 0:00:28]} 7. e4 {[%emt 0:00:07]} Nc6 {[%emt 0:00:15]} 8. Re1 {[%emt 0:00:06]} b5 {[%emt 0:00:20]} 9. e5 {[%emt 0:00:53]} Nd7 {[%emt 0:00:13]} 10. Nf1 {[%emt 0:00:05]} a5 {[%emt 0:00:24]} 11. c4 {[%emt 0:04:56]} bxc4 {[%emt 0:10:15]} 12. dxc4 {[%emt 0:00:06]} Nb6 {[%emt 0:00:22] Black is slightly better.} 13. cxd5 {[%emt 0:00:17]} exd5 {[%emt 0:00:10]} 14. h4 {[%emt 0:01:23]} h6 {[%emt 0:07:45] Wards off Ng5} 15. Be3 {[%emt 0:13:06]} d4 {[%emt 0:08:14]} 16. Bf4 {[%emt 0:02:35]} Nd5 {[%emt 0:03:42]} 17. N1d2 {[%emt 0:00:09]} Rb8 {[%emt 0:11:01]} 18. Nc4 {[%emt 0:10:47]} Be6 {[%emt 0:03:01]} (18... Nxf4 $19 19. gxf4 Nb4 (19... Bxh4 20. Nxh4 Qxh4 21. Bxc6 $16)) 19. Rc1 {[%emt 0:00:57]} (19. Bd2 $142) 19... Re8 {[%emt 0:16:23]} (19... Nxf4 $142 20. gxf4 Qd7 (20... Bxh4 21. Nxh4 Nb4 22. Nf3 $16)) 20. a3 $17 {[%emt 0:07:20]} Bf8 {[%emt 0:01:21]} (20... Nxf4 $17 21. gxf4 Bxc4 (21... Bxh4 22. Nxh4 Qxh4 23. Bxc6 $16) 22. Rxc4 Rxb2) 21. Bd2 $11 {[%emt 0:01:51]} Nc3 {[%emt 0:07:20]} 22. bxc3 {[%emt 0:02:48]} Bxc4 {[%emt 0:00:08]} 23. Qa4 {[%emt 0:17:25][%csl LRc4,LRc6]} (23. cxd4 Bb3 24. Qe2 Nxd4 25. Nxd4 cxd4) 23... Bb5 {[%emt 0:00:56]} 24. Qc2 {[%emt 0:00:19]} d3 {[%emt 0:04:37]} 25. Qa2 {[%emt 0:01:08]} c4 {[%emt 0:02:26]} 26. Bf4 {[%emt 0:00:31][%cal Oe5e6]} a4 {[%emt 0:04:39]} 27. e6 {[%emt 0:02:56]} Bd6 {[%emt 0:11:28]} (27... Rb7 28. Nd2 Qf6 29. exf7+ (29. Nxc4 Rxe6 30. Ne3 Re8 $16) 29... Qxf7 30. Rxe8 Qxe8 31. Bd5+ (31. Nxc4 $2 Qe6 $19) 31... Kh8 32. Nxc4 $14 (32. Bxc4 Na5 $15)) (27... fxe6 $1 $15 28. Bxb8 Qxb8) 28. exf7+ $14 {[%emt 0:04:17]} Kxf7 {[%emt 0:00:04]} 29. Nd2 $2 {[%emt 0:13:46]} (29. Qd2 $14 {stays ahead.} Bxf4 (29... Bxa3 30. Rxe8 Bxc1 31. Rxd8 $18) 30. Qxf4+ Kg8 31. Rxe8+ Qxe8 32. Rb1) 29... Rxe1+ $2 {[%emt 0:03:35]} (29... Bxf4 $19 30. Nxc4 Kf6 (30... Bxc1 31. Nd6+ Kg6 32. Qf7+ Kh7 33. Nxe8) (30... Re2 31. Ne5+ Ke7 32. Rxe2 $18)) 30. Rxe1 $11 {[%emt 0:00:03]} Na5 {[%emt 0:00:11]} (30... Bxf4 $11 31. Nxc4 Kf8 32. gxf4 Qf6 (32... Qxh4 33. Nd6 $16)) 31. Re4 {[%emt 0:04:08] Rd4 is the strong threat.} (31. Bd5+ {seems wilder.} Kf8 32. Re4 g5 33. hxg5 hxg5 34. Be3) 31... Bxf4 {[%emt 0:00:59]} 32. Rxf4+ {[%emt 0:00:06]} Kg8 {[%emt 0:00:04]} 33. Rd4 {[%emt 0:00:12]} Qe7 {[%emt 0:00:55]} 34. Rxd3 {[%emt 0:01:26]} Qe2 {[%emt 0:02:43]} (34... Nb3 $16 35. Re3 Qd6) 35. Re3 $18 {[%emt 0:05:04]} Qd1+ {[%emt 0:00:05]} 36. Kh2 {[%emt 0:00:33]} Rd8 {[%emt 0:01:22]} (36... Nb3 $142 37. Nf3 Re8) 37. Nf3 $16 {[%emt 0:01:54] Strongly threatening Re5.} Nb3 {[%emt 0:00:05]} 38. Re1 {[%emt 0:00:39]} Qd3 {[%emt 0:00:27]} 39. Qb2 {[%emt 0:00:14]} Ba6 {[%emt 0:01:52]} 40. Ne5 {[%emt 0:03:33]} Qd2 {[%emt 0:01:01]} 41. Re2 {[%emt 0:08:00]} Qd1 {[%emt 0:01:31]} 42. f4 {[%emt 0:05:18]} (42. Bf3 $16) 42... Nc1 $2 {[%emt 0:03:12][%mdl 8192]} (42... Rd2 $1 $14 43. Rxd2 Qxd2 44. Qxd2 Nxd2) 43. Re3 $2 {[%emt 0:08:37]} (43. Qb6 $18 {and the rest is easy. Intending Qe6+ and mate.} Qd6 (43... Nxe2 44. Qe6+ Kh8 45. Nf7+ Kg8 46. Nxd8+ Kh8 47. Nf7+ Kh7 48. Be4+ Kg8 49. Qe8#) 44. Rb2) 43... Nb3 {[%emt 0:00:51] ...Rd2 would now be deadly.} 44. Re2 {[%emt 0:00:15][%mdl 8192]} (44. Qf2 $16 Bb7 45. Qe2 (45. Bxb7 Rd2 $17) 45... Qxe2 46. Rxe2 Bxg2 47. Kxg2) 44... Nc1 $1 $18 {[%emt 0:07:13]} 45. Rf2 {[%emt 0:00:07]} (45. Qb6 $1 $18 {[%cal Rb6e6] Qe6+ would kill now.} Qd6 (45... Nxe2 46. Qe6+ Kh8 47. Nf7+ Kg8 48. Nxd8+ Kh8 49. Nf7+ Kh7 50. Be4+ Kg8 51. Qe8#) 46. Rb2) 45... Nd3 {[%emt 0:02:15]} (45... Nb3 $16 46. Bc6 Rd2 47. Rxd2 Qxd2+ 48. Qxd2 Nxd2) 46. Nxd3 {[%emt 0:01:04]} Qxd3 {[%emt 0:00:19]} 47. Qb6 {[%emt 0:02:53]} Bc8 {[%emt 0:00:11]} 48. Be4 {[%emt 0:02:08]} Qd1 {[%emt 0:00:51]} 49. f5 $36 {[%emt 0:01:13][%mdl 2048] Hoping for f6. Keeping Black busy.} Rd2 {[%emt 0:06:03]} 50. Qe3 {[%emt 0:00:25]} Rxf2+ {[%emt 0:00:43]} 51. Qxf2 $16 {[%emt 0:00:03][%mdl 4096] Endgame. KQB-KQB} Qd6 {[%emt 0:01:10]} 52. Qe2 {[%emt 0:01:04]} (52. Qf4 $142 $1 {[%cal Rf4d6]} Qxa3 53. Qc7) 52... Qc5 {[%emt 0:00:42]} 53. Qf1 {[%emt 0:05:26]} ({White should play} 53. f6 $16) 53... Kf7 {[%emt 0:00:46][%cal Oc8d7]} 54. Qf4 {[%emt 0:00:26] White wants to play g4.} (54. Qd1 {simplifies} Bxf5 55. Qd5+ Qxd5 56. Bxd5+ Ke7 57. Bxc4 Kd6 58. Kg2) 54... Ba6 $2 {[%emt 0:05:15][%mdl 8192] [#]} (54... Bd7 $1 $11 {and Black stays safe.}) 55. g4 $1 $18 {[%emt 0:00:46]} Bb5 {[%emt 0:02:13][%cal Ob5e8]} 56. g5 {[%emt 0:00:59]} hxg5 {[%emt 0:00:05]} 57. hxg5 {[%emt 0:00:06][%cal Bh4g5,Bg5g6][%mdl 32]} Qxa3 $2 {[%emt 0:00:20]} (57... Bd7 58. f6 g6) 58. g6+ {[%emt 0:01:57]} Kf8 {[%emt 0:00:20] [#]} 59. f6 $1 {[%emt 0:00:08]} Qc5 {[%emt 0:02:04]} 60. f7 {[%emt 0:01:02]} (60. fxg7+ $142 Kxg7 61. Qf7+ Kh6 62. Qf6 (62. Qh7+ Kg5 $16) 62... Qh5+ 63. Kg3 Qg5+ 64. Qxg5+ Kxg5 65. g7) 60... Qb6 {[%emt 0:00:42]} 61. Kg2 {[%emt 0:00:37]} (61. Bc6 $142 Qxc6 62. Qb8+ Qe8 63. fxe8=Q+ (63. fxe8=R+ Bxe8 64. Qd8 a3 65. Qd6+ Kg8 66. Qd5+ Kf8 67. Qc5+ Kg8 68. Qxc4+ Kf8) 63... Bxe8 64. Qb4+ Kg8 65. Qxc4+ Kf8 66. Qb4+ (66. Qc5+ Kg8 67. Qd5+ Kf8 68. Qd8 a3 69. Qd6+ Kg8 70. Qb8 Kf8 71. Qb4+ Kg8) 66... Kg8 67. Qb8 (67. Qc4+ Kf8 68. Qb4+ Kg8 69. Qb8 Kf8 70. Qd8 a3 71. Qd6+ Kg8)) 61... Bd7 {[%emt 0:01:55]} 62. Qh2 $4 {[%emt 0:00:31][%mdl 8192]} (62. Qh4 $18 Qf6 (62... Qb2+ $2 63. Kf1 $18) 63. Qh5) 62... Qb2+ {[%emt 0:00:16]} 63. Kg3 {[%emt 0:00:04]} Qb8+ {[%emt 0:00:34]} ({Inferior is} 63... Qxc3+ 64. Kf4 Qf6+ 65. Ke3 Qc3+ (65... Qb6+ 66. Kd2 $11) 66. Kf4 $11) 64. Kg2 {[%emt 0:00:06]} Qxh2+ {[%emt 0:00:21]} 65. Kxh2 {[%emt 0:00:02] KB-KB} a3 {[%emt 0:00:05]} 66. Bb1 {[%emt 0:00:06]} Ba4 {[%emt 0:00:06]} 67. Kg3 {[%emt 0:00:19] [#]} Bc2 $1 {[%emt 0:02:13][%mdl 512]} 68. Ba2 {[%emt 0:00:06]} Bxg6 {[%emt 0:00:11]} 69. Kf4 {[%emt 0:00:05]} Bxf7 {[%emt 0:00:24]} 70. Ke5 {[%emt 0:00:08]} Ke7 {[%emt 0:00:05]} 71. Kd4 {[%emt 0:00:06]} Kd6 {[%emt 0:00:10] A wild game.   Weighted Error Value: White=0.39/Black=0.64.  Loses game:     	White=1     	Black=2      Missed win:     	White=2     	Black=1      Mistake:       	White=5     	Black=9      Inaccurate:     	White=7     	Black=5      OK:         	White=8     	Black=14     Best:        	White=8     	Black=5      Strong:       	White=1     	Black=1} 0-1

[Event "XII Cracow ICC-A 2024"]
[Site "Krakow"]
[Date "2024.06.29"]
[Round "9.7"]
[White "Mirzoev, Azer"]
[Black "Cieslak, Patryk"]
[Result "1/2-1/2"]
[ECO "D02"]
[WhiteElo "2448"]
[BlackElo "2358"]
[Annotator "TA"]
[PlyCount "94"]
[EventDate "2024.06.20"]
[EventType "swiss"]
[EventCountry "POL"]
[SourceTitle "playchess.com"]
[Source "ChessBase"]
[SourceQuality "1"]
[TimeControl "40/5400+30:1800+30"]

{[%evp 9,94,-32,-13,-34,-11,-1,0,0,0,0,0,0,0,-18,0,-7,0,0,0,0,0,0,10,4,26,25,24,13,43,26,20,0,31,-17,0,-9,0,-27,-30,-49,-20,-40,-36,-49,-41,-50,-48,-50,-30,-36,0,-83,-86,-73,-25,-24,-24,-19,0,0,0,0,0,0,0,0,0,0,0,0,0,0,0,0,0,-12,0,0,0,0,0,0,0,0,0,0,0]} 1. d4 {[%emt 0:05:57]} Nf6 {[%emt 0:00:11]} 2. Nf3 {[%emt 0:00:15]} d5 {[%emt 0:00:13]} 3. c4 {[%emt 0:00:05]} e6 {[%emt 0:00:03]} 4. Nbd2 {[%emt 0:00:50]} c5 {[%emt 0:07:31]} 5. cxd5 {[%emt 0:00:33]} exd5 {[%emt 0:04:47]} 6. e3 {[%emt 0:00:22]} Nc6 {[%emt 0:02:59]} 7. Bb5 {[%emt 0:00:28]} cxd4 {[%emt 0:01:47]} 8. Nxd4 {[%emt 0:03:09]} Bd7 {[%emt 0:00:41]} 9. N4f3 {[%emt 0:05:05]} Bd6 {[%emt 0:09:47]} 10. O-O {[%emt 0:00:15]} O-O {[%emt 0:00:40]} 11. b3 {[%emt 0:00:12]} a6 {[%emt 0:02:59]} 12. Be2 {[%emt 0:00:10]} Qe7 {[%emt 0:01:29]} 13. Bb2 {[%emt 0:00:07]} Rac8 {[%emt 0:02:04]} 14. a3 {[%emt 0:03:36]} Rfd8 {[%emt 0:13:12]} 15. b4 {[%emt 0:00:57]} Bf5 {[%emt 0:09:18]} 16. Rc1 {[%emt 0:02:39]} Bb8 {[%emt 0:03:17]} 17. Nb3 {[%emt 0:01:28]} Ne4 {[%emt 0:00:27]} 18. Nbd4 {[%emt 0:00:48]} Bg4 {[%emt 0:08:20]} 19. g3 {[%emt 0:05:21]} Bh3 {[%emt 0:04:01]} 20. Re1 {[%emt 0:00:25][%cal Oe2a6]} (20. Nxc6 $5 Rxc6 21. Rxc6 Bxf1 22. Rc1 $11) 20... Nxd4 21. Nxd4 (21. Qxd4 $14 {was preferrable.} f6 22. Rxc8 Bxc8 23. Rd1) 21... Be5 {[%emt 0:00:20]} 22. Rxc8 {[%emt 0:16:34]} Rxc8 {[%emt 0:01:25]} 23. Bf3 {[%emt 0:02:54]} (23. Bg4 $5 Bxg4 24. Qxg4 $15) 23... Qf6 {[%emt 0:01:01][%cal Oh3g4]} 24. Qe2 {[%emt 0:01:09]} g6 {[%emt 0:02:34]} 25. Bg2 {[%emt 0:10:17]} (25. Qd3 {simplifies} Bxd4 26. Qxd4 Qxd4 27. Bxd4 Rc2 28. a4) 25... Bxg2 {[%emt 0:03:07]} 26. Kxg2 {[%emt 0:00:07]} Rc4 {[%emt 0:00:27]} 27. Rd1 {[%emt 0:03:10]} h5 {[%emt 0:03:23]} 28. h4 {[%emt 0:01:39]} Kh7 {[%emt 0:02:05]} 29. Ba1 {[%emt 0:04:41]} Kg8 {[%emt 0:00:58]} 30. Qf3 {[%emt 0:06:05]} (30. Bb2 $11 {keeps the balance.}) 30... Qxf3+ {[%emt 0:02:27]} 31. Kxf3 {[%emt 0:00:14]} Bxd4 {[%emt 0:07:54]} (31... Rc7 $17) 32. Rxd4 $11 {[%emt 0:00:05]} Rxd4 {[%emt 0:00:19]} 33. Bxd4 $17 {[%emt 0:01:26][%mdl 4096] Endgame. KB-KN} f6 {[%emt 0:00:36] The position is equal.} 34. a4 {[%emt 0:00:20]} Kf7 {[%emt 0:00:11]} 35. Kg2 {[%emt 0:00:11]} g5 {[%emt 0:02:25]} 36. f3 {[%emt 0:00:49]} Nd2 {[%emt 0:02:18]} 37. Kf2 {[%emt 0:00:43]} Nc4 {[%emt 0:02:36]} 38. e4 {[%emt 0:04:26]} dxe4 {[%emt 0:00:37]} 39. fxe4 {[%emt 0:00:04]} Ke6 {[%emt 0:00:52]} 40. Ke2 {[%emt 0:00:39]} b5 {[%emt 0:00:31]} 41. axb5 {[%emt 0:30:35]} axb5 {[%emt 0:02:33]} 42. Bc3 {[%emt 0:00:00]} g4 {[%emt 0:07:22]} 43. Kd3 {[%emt 0:00:00]} Ne5+ {[%emt 0:02:05]} 44. Kd4 {[%emt 0:00:00] [#] Kc5 would now be deadly.} Kd6 {[%emt 0:00:46]} 45. Ke3 {[%emt 0:00:00] Hoping for Kf4.} Ke6 {[%emt 0:00:12]} 46. Kd4 {[%emt 0:00:00] Strongly threatening Kc5.} Kd6 {[%emt 0:00:37]} 47. Ke3 {[%emt 0:00:00] Threatens to win with Kf4.} Ke6 {[%emt 0:00:15] Weighted Error Value: White=0.10 (very precise) /Black=0.10 (very precise) .  Mistake:       	White=2     	Black=1      Inaccurate:     	White=1     	Black=4      OK:         	White=18    	Black=13} 1/2-1/2

[Event "XII Cracow ICC-A 2024"]
[Site "Krakow"]
[Date "2024.06.29"]
[Round "9.8"]
[White "Janeczko, Jakub"]
[Black "Licznerski, Lukasz"]
[Result "1/2-1/2"]
[ECO "B12"]
[WhiteElo "2293"]
[BlackElo "2434"]
[Annotator "TA"]
[PlyCount "93"]
[EventDate "2024.06.20"]
[EventType "swiss"]
[EventCountry "POL"]
[SourceTitle "playchess.com"]
[Source "ChessBase"]
[SourceQuality "1"]
[TimeControl "40/5400+30:1800+30"]

{[%evp 11,93,0,0,0,0,0,18,17,22,-58,-64,-66,-64,-62,-51,-59,-58,-56,-60,-44,-54,-45,-54,-56,0,-31,-36,-62,-29,-50,-47,-95,-96,-135,-120,-133,-88,-88,-91,-94,-75,-69,-93,-68,-95,-101,-83,-87,-59,-67,-26,-27,0,0,0,0,0,0,8,0,8,3,8,8,55,24,22,13,22,0,0,0,0,0,0,0,0,0,10,10,10,10,12,8]} 1. e4 {[%emt 0:00:02]} c6 {[%emt 0:04:50]} 2. d4 {[%emt 0:00:04]} d5 {[%emt 0:00:39]} 3. f3 {[%emt 0:00:06]} Qb6 {[%emt 0:00:12]} 4. Nc3 {[%emt 0:00:10]} dxe4 {[%emt 0:00:16]} 5. fxe4 {[%emt 0:00:03]} e5 {[%emt 0:00:02]} 6. Nf3 {[%emt 0:00:09] B12: Caro-Kann: Advance Variation.} exd4 {[%emt 0:00:04]} 7. Nxd4 {[%emt 0:00:06]} Bc5 {[%emt 0:00:04]} 8. Na4 {[%emt 0:02:16]} Qa5+ {[%emt 0:00:02]} 9. c3 {[%emt 0:00:20]} Bd6 {[%emt 0:00:02] [#] is the new trend.} 10. Nf5 {[%emt 0:12:28]} (10. Nf3 $1 $11 Be7 11. b4) 10... Be5 $15 {[%emt 0:00:11]} 11. Nd6+ $146 {[%emt 0:18:19]} ({Predecessor:} 11. Ne3 Qc7 12. Ng4 Bxg4 13. Qxg4 Nf6 14. Qh3 Nbd7 15. b4 b5 16. Nc5 Nxc5 17. bxc5 b4 18. Bb2 bxc3 19. Bxc3 Nxe4 20. Bxe5 Qxe5 {0-1 Fercec,N (2460)-Feller,S (2569) CRO-chT1B 26th 2017 (3.2)}) 11... Bxd6 {[%emt 0:00:39]} 12. Qxd6 {[%emt 0:00:11]} Qxa4 {[%emt 0:00:02]} 13. Qe5+ $1 {[%emt 0:00:14]} Be6 {[%emt 0:00:03]} 14. b3 $1 {[%emt 0:04:10]} Nd7 $1 {[%emt 0:00:03]} 15. Qxe6+ {[%emt 0:01:21]} fxe6 {[%emt 0:00:05]} 16. bxa4 {[%emt 0:00:06]} Ngf6 {[%emt 0:00:05]} 17. Bc4 {[%emt 0:05:37]} Nc5 {[%emt 0:00:16]} (17... Nxe4 18. O-O $11) (17... O-O-O $1 $15) 18. Be3 {[%emt 0:00:24]} Nfxe4 {[%emt 0:00:32]} 19. O-O {[%emt 0:00:23]} O-O-O {[%emt 0:01:03]} (19... Nxa4 $6 20. Bxe6 Ke7 21. Bb3 Naxc3 22. Rf7+ Kd6 23. Rxb7 $16 (23. Rxg7 b5 $14)) 20. Rf7 {[%emt 0:07:02]} Rd7 {[%emt 0:00:40]} 21. Raf1 {[%emt 0:02:16]} (21. Rxd7 $15 Kxd7 22. Bd4) 21... Rhd8 {[%emt 0:00:45]} (21... Nxa4 $2 22. Bxe6 (22. Bxa7 Re8 $17) 22... Nac5 23. Bxc5 (23. Bxd7+ Nxd7 24. Rxg7 h5 $18) 23... Nxc5 24. Bxd7+ Nxd7 25. Rxg7 $18) 22. h4 {[%emt 0:01:47]} b6 {[%emt 0:20:14]} (22... Nxa4 $2 23. Bxe6 (23. Bxa7 Nec5 $17) 23... Nd6 24. Rxd7 (24. Rxg7 Kc7 $18) 24... Rxd7 25. Rd1 $18 (25. Bxd7+ Kxd7 26. Bd4 g6 $18) (25. Bxa7 Kd8 $18)) 23. h5 {[%emt 0:09:22]} Nd6 {[%emt 0:10:02]} (23... Nxc3 24. Bxc5 Rxf7 (24... bxc5 $2 25. Bxe6 Ne2+ 26. Kf2 $18) 25. Rxf7 Rd1+ 26. Kf2 bxc5 27. Rxg7 $16 (27. Bxe6+ Kd8 $16)) 24. Bxc5 {[%emt 0:00:44]} Nxc4 {[%emt 0:00:36]} 25. Be7 {[%emt 0:00:56]} Ne3 {[%emt 0:00:26]} 26. Bxd8 {[%emt 0:02:15]} Nxf1 {[%emt 0:03:25]} 27. Be7 {[%emt 0:00:06]} Ng3 {[%emt 0:01:53]} 28. Rxg7 {[%emt 0:00:59]} Nxh5 {[%emt 0:00:55]} 29. Rxh7 {[%emt 0:00:12]} Ng3 {[%emt 0:00:16]} 30. Rh8+ {[%emt 0:03:31]} Kb7 {[%emt 0:01:51]} 31. Bf6 {[%emt 0:01:23]} Rd2 {[%emt 0:07:45]} 32. Be5 {[%emt 0:04:21]} Nf5 {[%emt 0:02:13]} 33. Rh7+ {[%emt 0:01:37]} Ka8 {[%emt 0:07:07]} 34. Rh8+ {[%emt 0:00:42]} Kb7 {[%emt 0:00:01]} 35. Rh7+ {[%emt 0:00:10]} Kc8 {[%emt 0:00:40]} 36. g4 {[%emt 0:08:21]} Ne3 {[%emt 0:01:22]} 37. g5 {[%emt 0:00:05]} Rxa2 {[%emt 0:02:18]} (37... Rg2+ $11 38. Kh1 Rg4 (38... Rxg5 39. Bf4 $18)) 38. Bd4 {[%emt 0:05:42]} (38. Rc7+ Kd8 39. g6 (39. Rxa7 $2 Ra1+ 40. Kh2 Ng4+ 41. Kg3 Nxe5 $19) 39... Rg2+ (39... Rxa4 $2 40. g7 $18) (39... Ra1+ 40. Kf2 $15) 40. Kh1 Rxg6 41. Rxc6 Rg4 $17) 38... Nf5 {[%emt 0:01:57]} 39. g6 {[%emt 0:02:12]} c5 {[%emt 0:02:42]} 40. Rf7 {[%emt 0:07:32]} (40. g7 {simplifies} Nxg7 41. Bxg7 Kb7 42. Be5+) 40... Nh4 {[%emt 0:07:27]} (40... cxd4 $2 41. Rxf5 exf5 42. g7 $18) 41. g7 {[%emt 0:32:21]} (41. Rf8+ Kd7 42. g7 Rg2+ (42... cxd4 $2 {perishes.} 43. Rf2 $18) 43. Kf1 cxd4) 41... Rg2+ {[%emt 0:30:02]} ({Weaker is} 41... cxd4 42. g8=Q#) 42. Kf1 {[%emt 0:00:24]} cxd4 {[%emt 0:00:02]} 43. cxd4 {[%emt 0:00:11]} Kb8 {[%emt 0:05:08]} 44. Rf8+ {[%emt 0:00:00]} Kb7 {[%emt 0:00:00]} 45. g8=Q {[%emt 0:00:00]} Rxg8 {[%emt 0:00:00]} 46. Rxg8 {[%emt 0:00:00]} Nf5 {[%emt 0:00:00]} 47. Ke2 {[%emt 0:00:00]} 1/2-1/2

[Event "XII Cracow ICC-A 2024"]
[Site "Krakow"]
[Date "2024.06.29"]
[Round "9.9"]
[White "Sieciechowicz, Marcin"]
[Black "Nurgaliyev, Sauat"]
[Result "1-0"]
[ECO "D85"]
[WhiteElo "2405"]
[BlackElo "2321"]
[Annotator "RC"]
[PlyCount "119"]
[EventDate "2024.06.20"]
[EventType "swiss"]
[EventCountry "POL"]
[SourceTitle "playchess.com"]
[Source "ChessBase"]
[SourceQuality "1"]
[TimeControl "40/5400+30:1800+30"]

1. d4 {[%emt 0:00:01]} Nf6 {[%emt 0:01:24]} 2. c4 {[%emt 0:00:03]} g6 {[%emt 0:00:06]} 3. Nc3 {[%emt 0:00:07]} d5 {[%emt 0:00:04]} 4. cxd5 {[%emt 0:00:11]} Nxd5 {[%emt 0:00:21]} 5. Bd2 {[%emt 0:00:02]} c5 {[%emt 0:00:32]} 6. e4 {[%emt 0:00:42]} Nxc3 {[%emt 0:00:09]} 7. Bxc3 {[%emt 0:00:05]} cxd4 {[%emt 0:00:09]} 8. Bxd4 {[%emt 0:04:15]} e5 {[%emt 0:00:06]} 9. Bc3 {[%emt 0:02:45]} Qxd1+ {[%emt 0:03:34]} 10. Rxd1 {[%emt 0:00:02]} f6 {[%emt 0:02:05]} 11. Nf3 {[%emt 0:26:01]} Be6 {[%emt 0:04:35]} 12. Bb5+ {[%emt 0:01:09]} Nc6 {[%emt 0:04:06]} 13. Nd2 {[%emt 0:11:15]} O-O-O {[%emt 0:07:28]} 14. Bxc6 {[%emt 0:00:31]} bxc6 {[%emt 0:00:34]} 15. Ke2 {[%emt 0:03:29]} Bc5 {[%emt 0:03:41]} 16. b3 {[%emt 0:01:46]} Rd7 {[%emt 0:02:33]} 17. Rc1 {[%emt 0:00:42]} Bd6 {[%emt 0:10:11]} 18. Ba5 {[%emt 0:07:47]} Kb7 {[%emt 0:02:01]} 19. Rc2 {[%emt 0:00:23]} Rc8 {[%emt 0:02:42]} 20. Rd1 {[%emt 0:01:03]} Bb8 {[%emt 0:03:55]} 21. Rdc1 {[%emt 0:03:04]} a6 {[%emt 0:02:27]} 22. Bb4 {[%emt 0:02:25]} Ba7 {[%emt 0:03:33]} 23. Bc5 {[%emt 0:00:43]} Bxc5 {[%emt 0:01:59]} 24. Rxc5 {[%emt 0:00:01]} Rcd8 {[%emt 0:00:07]} 25. R1c2 {[%emt 0:01:10]} Rd6 {[%emt 0:00:23]} 26. f3 {[%emt 0:01:01]} Kc7 {[%emt 0:02:27]} 27. Nb1 {[%emt 0:03:14]} Rb8 {[%emt 0:06:45]} 28. Nc3 {[%emt 0:02:32]} Bc8 {[%emt 0:01:25]} 29. b4 {[%emt 0:05:25]} Bb7 {[%emt 0:02:15]} 30. Nd5+ {[%emt 0:04:29]} Kd8 {[%emt 0:01:21]} 31. Nb6 {[%emt 0:01:09]} Rd4 {[%emt 0:01:55]} 32. a3 {[%emt 0:00:34]} Ke7 {[%emt 0:02:13]} 33. Nc4 {[%emt 0:01:18]} Ba8 {[%emt 0:01:09]} 34. Na5 {[%emt 0:00:48]} Rd6 {[%emt 0:01:32]} 35. Nxc6+ {[%emt 0:00:23]} Bxc6 {[%emt 0:00:10]} 36. Rxc6 {[%emt 0:00:02]} h5 {[%emt 0:02:57]} 37. Rc7+ {[%emt 0:01:04]} Rd7 {[%emt 0:00:29]} 38. R2c6 {[%emt 0:00:52]} Rxc7 {[%emt 0:00:26]} 39. Rxc7+ {[%emt 0:00:02]} Kd6 {[%emt 0:00:09]} 40. Ra7 {[%emt 0:01:19]} Rb6 {[%emt 0:00:08]} 41. Kd3 {[%emt 0:33:40]} h4 {[%emt 0:31:48]} 42. g3 {[%emt 0:00:40]} hxg3 {[%emt 0:00:15]} 43. hxg3 {[%emt 0:00:02]} Ke6 {[%emt 0:01:17]} 44. g4 {[%emt 0:00:54]} Rc6 {[%emt 0:07:00]} 45. a4 {[%emt 0:00:11]} Rd6+ {[%emt 0:00:49]} 46. Kc4 {[%emt 0:00:28]} Rc6+ {[%emt 0:00:36]} 47. Kb3 {[%emt 0:00:07]} Rd6 {[%emt 0:00:04]} 48. a5 {[%emt 0:01:10]} Rd3+ {[%emt 0:00:27]} 49. Kc4 {[%emt 0:00:48]} Rxf3 {[%emt 0:00:05]} 50. Rxa6+ {[%emt 0:00:09]} Kd7 {[%emt 0:00:09]} 51. b5 {[%emt 0:02:25]} f5 {[%emt 0:01:12]} 52. Kd5 {[%emt 0:01:22]} Rb3 {[%emt 0:00:21]} 53. Ra7+ {[%emt 0:01:03]} Kc8 {[%emt 0:00:10]} 54. b6 {[%emt 0:00:26]} fxg4 {[%emt 0:00:37]} 55. Rg7 {[%emt 0:00:53]} Ra3 {[%emt 0:03:39]} 56. Rxg6 {[%emt 0:00:39]} g3 {[%emt 0:00:15]} 57. Rg8+ {[%emt 0:01:18]} Kb7 {[%emt 0:00:08]} 58. Rg7+ {[%emt 0:00:05]} Kb8 {[%emt 0:00:26]} 59. a6 {[%emt 0:00:34]} Rxa6 {[%emt 0:01:23]} 60. Kc6 {[%emt 0:00:06]} 1-0